[Event "Indian Blitz Championship 2023"]
[Site "Nashik"]
[Date "2024.03.07"]
[Round "2.8"]
[White "Chitre Arush"]
[Black "Raahul V S"]
[Result "1-0"]
[ECO "D02"]
[WhiteElo "2210"]
[BlackElo "2314"]
[Annotator "RC"]
[PlyCount "155"]
[EventDate "2024.03.07"]
[EventType "blitz"]
[EventCountry "IND"]
[SourceTitle "playchess.com"]
[Source "ChessBase"]
[SourceQuality "1"]
[TimeControl "180+2"]

1. d4 {[%emt 0:00:03]} d5 {[%emt 0:00:00]} 2. Nf3 {[%emt 0:00:03]} Nf6 {[%emt 0:00:01]} 3. Bf4 {[%emt 0:00:02]} c5 {[%emt 0:00:01]} 4. e3 {[%emt 0:00:02]} Nc6 {[%emt 0:00:01]} 5. c3 {[%emt 0:00:02]} Qb6 {[%emt 0:00:02]} 6. Qc2 {[%emt 0:00:01]} g6 {[%emt 0:00:01]} 7. Nbd2 {[%emt 0:00:04]} Bf5 {[%emt 0:00:01]} 8. dxc5 {[%emt 0:00:03]} Qxc5 {[%emt 0:00:17]} 9. Qb3 {[%emt 0:00:01]} Qb6 {[%emt 0:00:35]} 10. Qxb6 {[%emt 0:00:24]} axb6 {[%emt 0:00:02]} 11. Bb5 {[%emt 0:00:06]} Bg7 {[%emt 0:00:06]} 12. Nd4 {[%emt 0:00:41]} Bd7 {[%emt 0:00:01]} 13. O-O {[%emt 0:00:58]} O-O {[%emt 0:00:02]} 14. N2f3 {[%emt 0:00:10]} Rfc8 {[%emt 0:00:08]} 15. Rfd1 {[%emt 0:00:14]} Ne4 {[%emt 0:00:13]} 16. Bg3 {[%emt 0:00:22]} Nc5 {[%emt 0:00:20]} 17. Nc2 {[%emt 0:00:12]} Bf5 {[%emt 0:00:09]} 18. Nfd4 {[%emt 0:00:05]} e6 {[%emt 0:00:08]} 19. Nxf5 {[%emt 0:00:03]} gxf5 {[%emt 0:00:01]} 20. a3 {[%emt 0:00:03]} Nb3 {[%emt 0:00:13]} 21. Rab1 {[%emt 0:00:01]} Nca5 {[%emt 0:00:02]} 22. Na1 {[%emt 0:00:02]} Nxa1 {[%emt 0:00:06]} 23. Rxa1 {[%emt 0:00:01]} Nc4 {[%emt 0:00:01]} 24. Bxc4 {[%emt 0:00:02]} Rxc4 {[%emt 0:00:01]} 25. Kf1 {[%emt 0:00:02]} Kf8 {[%emt 0:00:03]} 26. Ke2 {[%emt 0:00:01]} Ke7 {[%emt 0:00:01]} 27. Kd2 {[%emt 0:00:02]} b5 {[%emt 0:00:01]} 28. Rac1 {[%emt 0:00:05]} Bf6 {[%emt 0:00:04]} 29. Ke2 {[%emt 0:00:02]} Rg8 {[%emt 0:01:19]} 30. Rg1 {[%emt 0:00:05]} h5 {[%emt 0:00:00]} 31. f4 {[%emt 0:00:00]} Kd6 {[%emt 0:00:00]} 32. Bf2 {[%emt 0:00:00]} h4 {[%emt 0:00:00]} 33. g3 {[%emt 0:00:01]} h3 {[%emt 0:00:00]} 34. Rgd1 {[%emt 0:00:02]} Ra8 {[%emt 0:00:00]} 35. Rd2 {[%emt 0:00:01]} Rac8 {[%emt 0:00:00]} 36. Kf3 {[%emt 0:00:02]} R4c7 {[%emt 0:00:00]} 37. Rcd1 {[%emt 0:00:01]} Rg8 {[%emt 0:00:00]} 38. Rb1 {[%emt 0:00:01]} Kc6 {[%emt 0:00:00]} 39. Rbd1 {[%emt 0:00:01]} Be7 {[%emt 0:00:00]} 40. Rb1 {[%emt 0:00:02]} Bc5 {[%emt 0:00:00]} 41. Rbd1 {[%emt 0:00:01]} Rcc8 {[%emt 0:00:00]} 42. Ra1 {[%emt 0:00:02]} Ra8 {[%emt 0:00:00]} 43. Rad1 {[%emt 0:00:03]} Ra4 {[%emt 0:00:00]} 44. Rd3 {[%emt 0:00:04]} Re4 {[%emt 0:00:00]} 45. R3d2 {[%emt 0:00:02]} Bb6 {[%emt 0:00:00]} 46. Rd3 {[%emt 0:00:01]} Kc5 {[%emt 0:00:00]} 47. Rd4 {[%emt 0:00:04]} Kc6 {[%emt 0:00:01]} 48. R4d3 {[%emt 0:00:01]} Bc5 {[%emt 0:00:04]} 49. R3d2 {[%emt 0:00:02]} Kb6 {[%emt 0:00:01]} 50. Rd3 {[%emt 0:00:01]} Ka6 {[%emt 0:00:01]} 51. R3d2 {[%emt 0:00:01]} Bb6 {[%emt 0:00:00]} 52. Rd3 {[%emt 0:00:01]} Ka5 {[%emt 0:00:01]} 53. R3d2 {[%emt 0:00:06]} Ka4 {[%emt 0:00:01]} 54. Rd3 {[%emt 0:00:03]} Rc4 {[%emt 0:00:10]} 55. R1d2 {[%emt 0:00:03]} Kb3 {[%emt 0:00:01]} 56. Re2 {[%emt 0:00:01]} f6 {[%emt 0:00:19]} 57. Red2 {[%emt 0:00:02]} Rd8 {[%emt 0:00:04]} 58. g4 {[%emt 0:00:01]} fxg4+ {[%emt 0:00:02]} 59. Kxg4 {[%emt 0:00:01]} Rg8+ {[%emt 0:00:03]} 60. Kxh3 {[%emt 0:00:03]} Rc7 {[%emt 0:00:01]} 61. Bg3 {[%emt 0:00:00]} Rh7+ {[%emt 0:00:08]} 62. Kg2 {[%emt 0:00:01]} Kc4 {[%emt 0:00:01]} 63. Kf3 {[%emt 0:00:01]} Rf8 {[%emt 0:00:03]} 64. e4 {[%emt 0:00:12]} dxe4+ {[%emt 0:00:02]} 65. Kxe4 {[%emt 0:00:00]} f5+ {[%emt 0:00:03]} 66. Kf3 {[%emt 0:00:00]} Rhf7 {[%emt 0:00:02]} 67. Rd6 {[%emt 0:00:00]} e5 {[%emt 0:00:02]} 68. Rxb6 {[%emt 0:00:00]} e4+ {[%emt 0:00:00]} 69. Ke3 {[%emt 0:00:00]} Kc5 {[%emt 0:00:01]} 70. Rbd6 {[%emt 0:00:00]} Ra8 {[%emt 0:00:02]} 71. R6d5+ {[%emt 0:00:00]} Kc6 {[%emt 0:00:01]} 72. R5d4 {[%emt 0:00:00]} Rh8 {[%emt 0:00:02]} 73. c4 {[%emt 0:00:01]} Rg7 {[%emt 0:00:04]} 74. cxb5+ {[%emt 0:00:01]} Kb6 {[%emt 0:00:00]} 75. Rd6+ {[%emt 0:00:01]} Ka7 {[%emt 0:00:01]} 76. b6+ {[%emt 0:00:01]} Ka6 {[%emt 0:00:01]} 77. R6d5 {[%emt 0:00:02]} Rh5 {[%emt 0:00:01]} 78. R2d4 {[%emt 0:00:03]} 1-0

[Event "Indian Blitz Championship 2023"]
[Site "Nashik"]
[Date "2024.03.07"]
[Round "2.9"]
[White "Prraneeth Vuppala"]
[Black "Patil Harshal"]
[Result "1/2-1/2"]
[ECO "A07"]
[WhiteElo "2506"]
[BlackElo "2094"]
[Annotator "RC"]
[PlyCount "105"]
[EventDate "2024.03.07"]
[EventType "blitz"]
[EventCountry "IND"]
[SourceTitle "playchess.com"]
[Source "ChessBase"]
[SourceQuality "1"]
[TimeControl "180+2"]

1. Nf3 {[%emt 0:00:01]} d5 {[%emt 0:00:02]} 2. g3 {[%emt 0:00:02]} Nf6 {[%emt 0:00:03]} 3. Bg2 {[%emt 0:00:01]} Bf5 {[%emt 0:00:01]} 4. O-O {[%emt 0:00:11]} e6 {[%emt 0:00:01]} 5. d3 {[%emt 0:00:01]} c6 {[%emt 0:00:01]} 6. Nbd2 {[%emt 0:00:04]} Be7 {[%emt 0:00:01]} 7. Qe1 {[%emt 0:00:09]} h6 {[%emt 0:00:12]} 8. e4 {[%emt 0:00:11]} Bh7 {[%emt 0:00:01]} 9. b3 {[%emt 0:00:04]} O-O {[%emt 0:00:02]} 10. Bb2 {[%emt 0:00:01]} a5 {[%emt 0:00:03]} 11. Ne5 {[%emt 0:00:20]} Nbd7 {[%emt 0:00:03]} 12. Nxd7 {[%emt 0:00:03]} Nxd7 {[%emt 0:00:01]} 13. a4 {[%emt 0:00:10]} Bf6 {[%emt 0:00:15]} 14. e5 {[%emt 0:00:02]} Be7 {[%emt 0:00:02]} 15. f4 {[%emt 0:00:03]} b5 {[%emt 0:00:10]} 16. Nf3 {[%emt 0:00:04]} bxa4 {[%emt 0:00:03]} 17. Rxa4 {[%emt 0:00:12]} Nc5 {[%emt 0:00:07]} 18. Ra1 {[%emt 0:00:05]} a4 {[%emt 0:00:01]} 19. b4 {[%emt 0:00:06]} Nd7 {[%emt 0:00:05]} 20. Kh1 {[%emt 0:00:12]} Qb6 {[%emt 0:00:03]} 21. Ba3 {[%emt 0:00:11]} c5 {[%emt 0:00:24]} 22. bxc5 {[%emt 0:00:13]} Bxc5 {[%emt 0:00:01]} 23. Rb1 {[%emt 0:00:01]} Qc6 {[%emt 0:00:04]} 24. Bxc5 {[%emt 0:00:03]} Qxc5 {[%emt 0:00:02]} 25. Qd2 {[%emt 0:00:15]} Rfc8 {[%emt 0:00:01]} 26. Rfc1 {[%emt 0:00:05]} a3 {[%emt 0:00:01]} 27. c3 {[%emt 0:00:08]} Rab8 {[%emt 0:00:19]} 28. Rxb8 {[%emt 0:00:16]} Rxb8 {[%emt 0:00:01]} 29. Ra1 {[%emt 0:00:33]} Rb2 {[%emt 0:00:07]} 30. Qc1 {[%emt 0:00:07]} Bxd3 {[%emt 0:00:03]} 31. Nd4 {[%emt 0:00:01]} Nb6 {[%emt 0:00:12]} 32. f5 {[%emt 0:00:01]} exf5 {[%emt 0:00:03]} 33. e6 {[%emt 0:00:03]} fxe6 {[%emt 0:00:02]} 34. Nxe6 {[%emt 0:00:03]} Qf2 {[%emt 0:00:01]} 35. Nf4 {[%emt 0:00:04]} Be4 {[%emt 0:00:06]} 36. Qg1 {[%emt 0:00:05]} Qxg1+ {[%emt 0:00:07]} 37. Kxg1 {[%emt 0:00:02]} Bxg2 {[%emt 0:00:04]} 38. Nxg2 {[%emt 0:00:02]} Na4 {[%emt 0:00:00]} 39. Rxa3 {[%emt 0:00:01]} Nc5 {[%emt 0:00:05]} 40. Nf4 {[%emt 0:00:02]} Rd2 {[%emt 0:00:08]} 41. Ra5 {[%emt 0:00:01]} Ne4 {[%emt 0:00:10]} 42. Nxd5 {[%emt 0:00:01]} Ng5 {[%emt 0:00:03]} 43. Ne7+ {[%emt 0:00:04]} Kf7 {[%emt 0:00:04]} 44. Nxf5 {[%emt 0:00:02]} Nf3+ {[%emt 0:00:01]} 45. Kf1 {[%emt 0:00:00]} Nxh2+ {[%emt 0:00:01]} 46. Ke1 {[%emt 0:00:01]} Nf3+ {[%emt 0:00:01]} 47. Kf1 {[%emt 0:00:00]} Kf6 {[%emt 0:00:13]} 48. Ne3 {[%emt 0:00:02]} Nh2+ {[%emt 0:00:03]} 49. Ke1 {[%emt 0:00:00]} Nf3+ {[%emt 0:00:02]} 50. Kf1 {[%emt 0:00:01]} Nh2+ {[%emt 0:00:19]} 51. Ke1 {[%emt 0:00:00]} Nf3+ {[%emt 0:00:02]} 52. Kf1 {[%emt 0:00:01]} Nh2+ {[%emt 0:00:01]} 53. Ke1 {[%emt 0:00:01]} 1/2-1/2

[Event "Indian Blitz Championship 2023"]
[Site "Nashik"]
[Date "2024.03.07"]
[Round "2.10"]
[White "Pradip, Ghosh"]
[Black "Kushagra Mohan"]
[Result "0-1"]
[ECO "B11"]
[WhiteElo "1986"]
[BlackElo "2351"]
[Annotator "TA"]
[PlyCount "62"]
[EventDate "2024.03.07"]
[EventType "blitz"]
[EventCountry "IND"]
[SourceTitle "playchess.com"]
[Source "ChessBase"]
[SourceQuality "1"]
[TimeControl "180+2"]

{[%evp 10,61,23,22,29,23,19,22,23,6,16,15,42,-4,33,8,47,0,13,28,26,23,12,-5,0,25,21,-126,-125,-142,-147,-159,-155,-176,-173,-224,-213,-216,-87,-340,-348,-525,-345,-331,-333,-329,-329,-414,-415,-421,-413,-362,-225,-29999]} 1. e4 {[%emt 0:00:01]} c6 {[%emt 0:00:00]} 2. Nf3 {[%emt 0:00:02]} d5 {[%emt 0:00:00]} 3. Nc3 {[%emt 0:00:01]} dxe4 {[%emt 0:00:01]} 4. Nxe4 {[%emt 0:00:02]} Nf6 {[%emt 0:00:01]} 5. Qe2 {[%emt 0:00:01]} Nxe4 {[%emt 0:00:01]} 6. Qxe4 {[%emt 0:00:01]} Qa5 {[%emt 0:00:01]} 7. Bc4 {[%emt 0:00:11]} Bf5 {[%emt 0:00:03]} 8. Qe2 {[%emt 0:00:02]} Nd7 {[%emt 0:00:11] The position is equal.} 9. O-O {[%emt 0:00:03]} e6 {[%emt 0:00:03]} 10. d4 {[%emt 0:00:02]} Bd6 {[%emt 0:00:12]} 11. Re1 {[%emt 0:00:19]} (11. Nh4 $14 O-O 12. Bd2) 11... O-O-O {[%emt 0:00:13]} 12. Bg5 {[%emt 0:00:40]} Rde8 {[%emt 0:00:03]} 13. Ne5 {[%emt 0:00:08]} (13. h3 $14) 13... Nxe5 {[%emt 0:00:15]} 14. dxe5 {[%emt 0:00:02]} Be7 {[%emt 0:00:01]} 15. Bd2 {[%emt 0:00:09]} Qb6 {[%emt 0:00:02]} 16. Be3 {[%emt 0:00:04]} Bc5 {[%emt 0:00:09]} 17. Bxc5 {[%emt 0:00:33]} Qxc5 {[%emt 0:00:00] [#]} 18. b4 {[%emt 0:00:05]} Qxb4 $17 {[%emt 0:00:08]} 19. Rab1 {[%emt 0:00:06]} Qa5 {[%emt 0:00:08]} 20. Rb2 {[%emt 0:00:09]} Rd8 {[%emt 0:00:03]} 21. Reb1 {[%emt 0:00:01] [#]} b6 {[%emt 0:00:21]} (21... Rd2 22. Qf3 Rd7 (22... Rxc2 $2 23. Rxb7 $18) (22... Bxc2 23. Qxf7 b5 24. Qxe6+ Kc7 25. Bxb5 $16) 23. Qxc6+ Qc7 (23... bxc6 24. Rb8+ Kc7 25. R1b7#) (23... Rc7 $2 24. Qf3 $18) 24. Qa4 $11) 22. a4 {[%emt 0:00:19]} (22. Qf3 {was necessary.} Qc5 (22... Qxe5 23. Qxc6+ Qc7 24. Ba6+ Kb8 25. Rxb6+ axb6 26. Rxb6+) 23. Bd3) 22... Rd2 $19 {[%emt 0:00:13]} (22... Qxa4 $2 23. Ra2 $18) 23. Qf3 {[%emt 0:00:06]} Kc7 {[%emt 0:00:01]} (23... Qxe5 24. Qxc6+ Kd8 (24... Kb8 25. Rxb6+ axb6 26. Rxb6+ Ka7 27. Qb7#) 25. Qa8+ Ke7 26. Qxa7+ (26. Qxh8 Rd8 $15) 26... Kf6 27. Qxb6 $11 (27. Rxb6 Qd4 $15)) (23... Qxa4 $2 24. Rb4 Qa5 (24... Qxc2 $2 25. Rxb6 Qxb1+ 26. Rxb1 $18) 25. Qxc6+ Kd8 (25... Kb8 $2 26. Rxb6+ axb6 27. Rxb6+ $18) 26. Rb5 $18 (26. Qa8+ Ke7 $18)) (23... Bxc2 $2 24. Qxc6+ Kd8 25. Bb5 (25. Qa8+ Ke7 $16) 25... Bxb1 26. Rxb1 $18) (23... Kb7 $19 {[%cal Oh8d8] is more deadly. Strongly threatening ...Rhd8!} 24. g4 Bg6 (24... Bxc2 25. Rb5 $11) (24... Qxa4 $2 25. Qf4 $18)) 24. h4 $2 {[%emt 0:00:06][%mdl 8192] This costs White the game.} (24. Bb5 $17 Rc8 (24... cxb5 25. Rxb5 $14) 25. g4) 24... Rhd8 {[%emt 0:00:13]} (24... Bxc2 25. Rc1 Bxa4 (25... Qxe5 $2 26. Rbxc2 Rxc2 27. Qxf7+ Kb8 28. Rxc2 $18) 26. Qxf7+ Rd7 (26... Kb8 $2 27. Rxd2 b5 28. Qxg7 $18) 27. Qxe6 $11) (24... Qxe5 25. a5 Rb8 (25... Rxc2 $2 26. axb6+ axb6 27. Rxb6 $18) (25... Bxc2 $2 26. Rxc2 Rxc2 27. Qxf7+ Kd6 28. Rd1+ Kc5 29. Bd3 $18) (25... Qxa5 $2 26. Ra2 $18) (25... bxa5 $2 26. Rb7+ Kd8 27. Qa3 $18) 26. Bf1 $17) (24... Qxa4 25. Ra2 $18) 25. g4 {[%emt 0:00:05]} (25. Bf1 $142) 25... R8d4 {[%emt 0:00:15] Active counter play!} (25... Qxa4 26. Ra2 (26. Rb4 Rd1+ 27. Kh2 Qxc2 $17) 26... Qxc4 27. Rxa7+ Kb8 28. Rxf7 $11) 26. gxf5 {[%emt 0:00:01]} Rxc4 {[%emt 0:00:01]} 27. fxe6 {[%emt 0:00:02]} fxe6 {[%emt 0:00:00]} (27... Rdxc2 $2 {loses.} 28. Rxc2 (28. exf7 R2c3 $18) (28. Qxf7+ Kb8 $18) 28... fxe6 29. Rxc4 $18) 28. Qf7+ {[%emt 0:00:01]} Rd7 {[%emt 0:00:02]} 29. Qxe6 {[%emt 0:00:03]} Rxh4 {[%emt 0:00:10]} 30. Rb3 {[%emt 0:00:02]} Qd5 {[%emt 0:00:07][%csl Gd5][%cal Rh4h1]} 31. Qf5 $2 {[%emt 0:00:07]} (31. Qxd5 $19 Rxd5 32. Re1) 31... Qh1# {[%emt 0:00:10] Weighted Error Value: White=0.67/Black=0.37.  Loses game:     	White=1     	---        Missed win:     	---       	Black=1      Mistake:       	White=6     	Black=1      Inaccurate:     	---       	Black=6      OK:         	White=10    	Black=7      Best:        	---       	Black=3} 0-1

[Event "Indian Blitz Championship 2023"]
[Site "Nashik"]
[Date "2024.03.07"]
[Round "3.1"]
[White "Utsab Chatterjee"]
[Black "Ghosh, Diptayan"]
[Result "0-1"]
[ECO "B12"]
[WhiteElo "2301"]
[BlackElo "2559"]
[Annotator "TA"]
[PlyCount "49"]
[EventDate "2024.03.07"]
[EventType "blitz"]
[EventCountry "IND"]
[SourceTitle "playchess.com"]
[Source "ChessBase"]
[SourceQuality "1"]
[TimeControl "180+2"]

{[%evp 12,49,30,10,38,38,44,25,33,-23,-23,-37,-52,-41,-57,-112,-25,-88,-38,-97,-105,-131,-134,-132,-142,-140,-129,-143,-124,-125,-76,-217,-225,-247,-198,-207,-178,-173,-155,-175]} 1. e4 {[%emt 0:00:01]} c6 {[%emt 0:00:01]} 2. d4 {[%emt 0:00:02]} d5 {[%emt 0:00:01]} 3. e5 {[%emt 0:00:01]} Bf5 {[%emt 0:00:02]} 4. h4 {[%emt 0:00:02]} h6 {[%emt 0:00:01]} 5. g4 {[%emt 0:00:04]} Be4 {[%emt 0:00:01]} 6. f3 {[%emt 0:00:02]} Bh7 {[%emt 0:00:01] [#]} 7. e6 $1 {[%emt 0:00:09]} Nf6 {[%emt 0:00:03]} (7... Qd6 8. exf7+) 8. Nc3 $1 {[%emt 0:00:25]} Qd6 {[%emt 0:00:08] Prevents Bf4.} 9. exf7+ {[%emt 0:00:03]} Kxf7 {[%emt 0:00:01] White has an edge.} 10. f4 {[%emt 0:00:06]} (10. Be3 $14) 10... Qe6+ $11 {[%emt 0:00:01]} 11. Qe2 {[%emt 0:00:09]} Nxg4 {[%emt 0:01:06]} 12. Qxe6+ {[%emt 0:00:08]} Kxe6 {[%emt 0:00:01]} 13. Bh3 {[%emt 0:00:01] [#]} (13. Nf3 $15) 13... Bf5 {[%emt 0:00:18]} (13... h5 $1 $17 14. Rh2 (14. Nf3 Bxc2 15. Ne2 g6 $17) 14... Kd7) 14. Nf3 {[%emt 0:00:05]} (14. h5 $1 $11) 14... Nd7 {[%emt 0:00:16]} (14... g6 $17 15. Bd2 Nd7) 15. Bd2 {[%emt 0:00:08]} (15. h5 $15) 15... h5 $17 {[%emt 0:00:19]} 16. O-O {[%emt 0:01:03]} g6 {[%emt 0:00:04]} 17. Rae1+ {[%emt 0:00:08]} Kf6 {[%emt 0:00:01]} 18. Ne5 {[%emt 0:00:06]} Rd8 {[%emt 0:00:21]} 19. Nd1 {[%emt 0:00:08]} e6 {[%emt 0:00:06]} 20. Ne3 {[%emt 0:00:28]} Be7 {[%emt 0:00:20] Some like it hot} ({Black should play} 20... Ndxe5 21. fxe5+ Kf7) 21. N5xg4+ {[%emt 0:00:18] This costs White the game.} (21. N3xg4+ hxg4 22. Bxg4 Nxe5 (22... Bxc2 23. f5 $14) (22... Rxh4 23. Bxf5 Kxf5 24. Re2 $15) 23. fxe5+ Kf7 $17) (21. Nxf5 $17 gxf5 22. Nf3) 21... hxg4 $19 {[%emt 0:00:02] Black is clearly better.} 22. Nxg4+ {[%emt 0:00:01]} Kg7 {[%emt 0:00:05]} 23. Nf2 {[%emt 0:00:02]} Bxh4 {[%emt 0:00:05]} 24. Bxf5 {[%emt 0:00:06]} exf5 {[%emt 0:00:01]} 25. Bb4 {[%emt 0:00:06] Weighted Error Value: White=0.24 (precise) /Black=0.25 (precise) .  Mistake:       	White=5     	Black=3      OK:         	White=3     	Black=5      Best:        	White=1     	Black=1      Strong:       	White=1     	---} 0-1

[Event "Indian Blitz Championship 2023"]
[Site "Nashik"]
[Date "2024.03.07"]
[Round "3.2"]
[White "Mitrabha, Guha"]
[Black "Srihari L R"]
[Result "1-0"]
[ECO "E61"]
[WhiteElo "2526"]
[BlackElo "2490"]
[Annotator "TA"]
[PlyCount "75"]
[EventDate "2024.03.07"]
[EventType "blitz"]
[EventCountry "IND"]
[SourceTitle "playchess.com"]
[Source "ChessBase"]
[SourceQuality "1"]
[TimeControl "180+2"]

{[%evp 16,75,15,13,26,13,21,20,12,20,22,12,24,13,28,11,15,8,12,20,35,0,0,0,0,0,0,0,0,0,0,0,0,-82,-61,-41,0,0,8,4,6,11,54,0,0,0,76,84,87,33,193,192,201,210,339,325,1186,1159,29996,29997,29997,29998]} 1. c4 {[%emt 0:00:01]} Nf6 {[%emt 0:00:01]} 2. g3 {[%emt 0:00:06]} g6 {[%emt 0:00:00]} 3. Bg2 {[%emt 0:00:00]} Bg7 {[%emt 0:00:01]} 4. Nc3 {[%emt 0:00:01]} O-O {[%emt 0:00:02]} 5. d4 {[%emt 0:00:03]} d6 {[%emt 0:00:00]} 6. e3 {[%emt 0:00:01]} Nbd7 {[%emt 0:00:20]} 7. Nge2 {[%emt 0:00:02]} e5 {[%emt 0:00:04]} 8. b3 {[%emt 0:00:01]} Re8 {[%emt 0:00:23]} 9. Bb2 {[%emt 0:00:01]} c6 {[%emt 0:00:01]} 10. Qc2 {[%emt 0:00:09]} exd4 {[%emt 0:00:08]} 11. Nxd4 {[%emt 0:00:03]} Nc5 {[%emt 0:00:18] The position is equal.} 12. O-O {[%emt 0:00:04]} a5 {[%emt 0:00:02][%cal Oa5a4]} 13. Rad1 {[%emt 0:00:05]} Bg4 {[%emt 0:00:07]} 14. Rd2 {[%emt 0:00:04]} Qe7 {[%emt 0:00:23]} 15. h3 {[%emt 0:00:16]} Bd7 {[%emt 0:00:08][%cal Oa5a4]} 16. Re1 {[%emt 0:00:17]} Nfe4 {[%emt 0:00:17]} 17. Nxe4 {[%emt 0:00:01]} Nxe4 {[%emt 0:00:01]} 18. Rdd1 {[%emt 0:00:01]} a4 {[%emt 0:00:10]} 19. b4 {[%emt 0:00:20]} a3 {[%emt 0:00:02]} 20. Ba1 {[%emt 0:00:01]} c5 {[%emt 0:00:13]} 21. bxc5 {[%emt 0:00:03]} dxc5 {[%emt 0:00:02]} 22. Nb3 {[%emt 0:00:06] [#] Bxg7 is the strong threat.} Bc6 {[%emt 0:00:17]} 23. Bxg7 {[%emt 0:00:03]} Kxg7 {[%emt 0:00:01]} 24. h4 {[%emt 0:00:10]} (24. Nd2 $11 {remains equal.}) 24... Qe5 {[%emt 0:00:08]} 25. Rc1 {[%emt 0:00:25]} Rad8 {[%emt 0:00:05] Against Nd2} 26. Re2 $1 {[%emt 0:00:06]} b6 {[%emt 0:00:13]} 27. Nd2 {[%emt 0:00:37]} f5 {[%emt 0:00:23]} 28. Nxe4 {[%emt 0:00:16]} fxe4 {[%emt 0:00:01]} 29. Qb3 {[%emt 0:00:06]} (29. Rb1 $1 $14) 29... Rd3 $1 $11 {[%emt 0:00:05]} (29... Qh5 $6 30. Rce1 $16) 30. Qxb6 {[%emt 0:00:02]} Re6 {[%emt 0:00:01]} (30... Qd6 $11) 31. Rb1 $16 {[%emt 0:00:12][%cal Bc1b1,Bb1b7,Bb7b8][%mdl 32]} Red6 {[%emt 0:00:00]} 32. Kh2 {[%emt 0:00:09]} (32. Qc7+ $16 Kh6 33. Rb6 Qa1+ 34. Kh2) 32... h6 $2 {[%emt 0:00:03] A mistake that costs the game.} (32... g5 $14 33. Qc7+ Bd7) 33. Qc7+ $18 {[%emt 0:00:03]} Bd7 {[%emt 0:00:02]} 34. Bh3 {[%emt 0:00:07][%cal Bg2h3,Bh3d7,Bd7e6][%mdl 32]} Qf6 {[%emt 0:00:02]} (34... Re6 {keeps fighting.} 35. Qa7 Re7) 35. Rb7 $1 {[%emt 0:00:05]} (35. Qxc5 Rd2 36. Rbe1 (36. Rxd2 Rxd2 37. Bg2 Rxf2 $11) 36... Bxh3 37. Kxh3 Rxe2 38. Qa7+ (38. Rxe2 Qf3 $14) 38... Kg8 (38... Qf7 39. Qxf7+ Kxf7 40. Rxe2 $14) 39. Rxe2 Qf3 $11) 35... Rd2 $2 {[%emt 0:00:02]} (35... h5 36. Qxc5 Kh8 37. Bxd7 Rxd7 38. Rxd7 Rxd7 39. Qxa3 Kg7) 36. Bxd7 {[%emt 0:00:02] [#] Intending Rxd2 and mate.} Rxe2 {[%emt 0:00:04]} 37. Be6+ {[%emt 0:00:03]} (37. Qxc5 {leads to mate.} Qxf2+ (37... Rxa2 38. Be6+ Kh8 39. Qxd6 $11) (37... Rxf2+ 38. Kh3) 38. Kh3 Qf1+ (38... Qxe3 39. Bg4+ Kh8 40. Qc8+) 39. Kg4 h5+) 37... Kf8 {[%emt 0:00:03]} 38. Rb8+ {[%emt 0:00:01] Weighted Error Value: White=0.12 (very precise) /Black=0.46.  Mistake:       	White=3     	Black=4      Inaccurate:     	White=1     	Black=3      OK:         	White=12    	Black=8      Best:        	White=3     	---        Strong:       	White=2     	Black=1} 1-0

[Event "Indian Blitz Championship 2023"]
[Site "Nashik"]
[Date "2024.03.07"]
[Round "3.3"]
[White "Kaustuv, Kundu"]
[Black "Karthik Venkataraman"]
[Result "0-1"]
[ECO "B00"]
[WhiteElo "2388"]
[BlackElo "2609"]
[Annotator "TA"]
[PlyCount "54"]
[EventDate "2024.03.07"]
[EventType "blitz"]
[EventCountry "IND"]
[SourceTitle "playchess.com"]
[Source "ChessBase"]
[SourceQuality "1"]
[TimeControl "180+2"]

{[%evp 9,54,-2,-8,0,0,-3,31,29,28,0,30,-1,54,-4,-8,-31,0,-30,-14,-8,16,-18,-14,-39,0,-103,-100,-93,-92,-116,-58,-179,-180,-185,-185,-282,-279,-385,-376,-559,-560,-589,-616,-1170,-1164,-29996,-29997]} 1. Nf3 {[%emt 0:00:02]} b6 {[%emt 0:00:01]} 2. e4 {[%emt 0:00:07]} Bb7 {[%emt 0:00:00]} 3. Nc3 {[%emt 0:00:02]} e6 {[%emt 0:00:01]} 4. a3 {[%emt 0:00:03]} Nf6 {[%emt 0:00:04]} 5. e5 {[%emt 0:00:05]} Nd5 {[%emt 0:00:02]} 6. Nxd5 {[%emt 0:00:04]} Bxd5 {[%emt 0:00:01]} 7. d4 {[%emt 0:00:02]} d6 {[%emt 0:00:03]} 8. Bd3 {[%emt 0:00:10] White is slightly better.} Nd7 {[%emt 0:00:03]} 9. Bf4 {[%emt 0:00:10]} Be7 {[%emt 0:00:07]} 10. h4 {[%emt 0:00:17]} h6 {[%emt 0:00:04]} (10... dxe5 $11 11. Nxe5 Nxe5 12. Bxe5 Bxh4) 11. h5 {[%emt 0:00:02]} ({White should play} 11. Qe2 $14) 11... dxe5 {[%emt 0:00:10]} 12. dxe5 {[%emt 0:00:04]} Nc5 {[%emt 0:00:01]} 13. Bb5+ {[%emt 0:00:05]} c6 {[%emt 0:00:17]} 14. Be2 {[%emt 0:00:02]} Be4 {[%emt 0:00:05]} 15. b4 {[%emt 0:00:13]} Na4 {[%emt 0:00:15]} 16. Bd2 {[%emt 0:00:29] Repels Nc3} O-O {[%emt 0:00:20]} 17. c4 {[%emt 0:00:06]} (17. Rh3 $11) 17... Nb2 $17 {[%emt 0:00:04] Black is more active.} 18. Qb3 {[%emt 0:00:04]} Nd3+ {[%emt 0:00:04]} 19. Kf1 {[%emt 0:00:01] [#] Strongly threatening Rd1.} Nxe5 {[%emt 0:00:17]} 20. Nxe5 {[%emt 0:00:29] Now White is beyond hope.} (20. Bxh6 $15 Bxf3 21. gxf3 gxh6 22. Qe3) 20... Qxd2 $19 {[%emt 0:00:01]} 21. Rd1 {[%emt 0:00:12] [#]} Qf4 {[%emt 0:00:22]} (21... Qg5 22. Nf3 Qf6 23. Qe3 Bxf3 24. Qxf3 $15) 22. Ng4 {[%emt 0:00:43]} (22. Qg3 {is a better defense.} Qxg3 23. fxg3) 22... Rfd8 {[%emt 0:00:04] aiming for ...Rxd1+.} 23. Ne3 {[%emt 0:00:08]} a5 {[%emt 0:00:08]} 24. Rxd8+ {[%emt 0:00:04]} (24. bxa5 $142 bxa5 25. Rxd8+ Bxd8 (25... Rxd8 $2 26. Qc3 $19) 26. Qd1) 24... Rxd8 {[%emt 0:00:02]} 25. bxa5 {[%emt 0:00:02]} bxa5 {[%emt 0:00:00]} 26. Qb6 {[%emt 0:00:05]} Qe5 {[%emt 0:00:12] ( -> ...Qa1+)} 27. Rh3 {[%emt 0:00:01]} Qa1+ {[%emt 0:00:04] Weighted Error Value: White=0.92/Black=0.16 (very precise) .  Mistake:       	White=5     	Black=2      Inaccurate:     	White=6     	Black=4      OK:         	White=5     	Black=6      Best:        	---       	Black=3} 0-1